bitfinex/quotes_BTCUSD_20250716
["timestamp","ask_amount","ask_price","bid_price","bid_amount"]
[1752690022409,0.20242527,119150.0,119140.0,1.11226081]
[1752690022653,0.02617749,119150.0,119140.0,1.10386768]
[1752690022860,0.02617749,119150.0,119140.0,1.11226067]
[1752690023066,0.00939214,119150.0,119140.0,1.11226067]
[1752690023278,0.01778435,119150.0,119140.0,1.11226067]
[1752690023486,0.02617678,119150.0,119140.0,1.11226067]
[1752690024187,0.01778435,119150.0,119140.0,1.11226067]
[1752690024397,0.0261767,119150.0,119140.0,1.11226067]
[1752690025272,0.03456927,119150.0,119140.0,1.11226067]
[1752690025465,0.0261767,119150.0,119140.0,0.72378267]
[1752690025675,0.0345692,119150.0,119140.0,0.72378267]
[1752690025885,0.0345692,119150.0,119140.0,1.58592767]
[1752690026291,0.0345692,119150.0,119140.0,1.50199267]
[1752690026501,0.03456913,119150.0,119140.0,1.50199267]
[1752690026903,0.03456913,119150.0,119140.0,1.52756115]
[1752690027066,0.03456913,119150.0,119140.0,1.44149615]
[1752690027275,0.0429617,119150.0,119140.0,1.35756115]
[1752690027907,0.03456913,119150.0,119140.0,1.36573536]
[1752690028476,0.0261767,119150.0,119140.0,1.36573536]
[1752690028689,0.01778435,119150.0,119140.0,1.36573536]
[1752690028892,0.0261767,119150.0,119140.0,1.36573536]
[1752690030113,0.02617678,119150.0,119140.0,1.36573536]
[1752690030317,0.0261767,119150.0,119140.0,1.36573536]
[1752690030730,0.001,119150.0,119140.0,5.43053654]
[1752690031026,3.303e-05,119150.0,119140.0,5.43053654]
[1752690031913,0.18757811,119190.0,119180.0,0.56049436]
[1752690032134,0.03670923,119190.0,119180.0,0.70922467]
[1752690032354,0.01992966,119190.0,119180.0,0.70938467]
[1752690032578,0.01992966,119190.0,119180.0,0.71777484]
[1752690032579,0.03670909,119190.0,119180.0,0.71777484]
[1752690033230,0.02831927,119190.0,119180.0,0.71777484]
[1752690033446,0.19611935,119190.0,119180.0,0.69260398]
[1752690033664,0.56372196,119190.0,119180.0,0.34026]
[1752690033882,0.56666196,119190.0,119180.0,0.4803]
[1752690034715,0.56666196,119190.0,119180.0,0.48026]
[1752690034958,0.56866196,119190.0,119180.0,0.48026]
[1752690035176,0.57070196,119190.0,119180.0,0.34026]
[1752690035394,0.57070196,119190.0,119180.0,0.34]
[1752690035843,0.18632006,119190.0,119180.0,0.50781339]
[1752690036059,0.56572196,119190.0,119180.0,0.51646391]
[1752690036276,0.70572196,119190.0,119180.0,0.51646391]
[1752690036494,0.57411164,119190.0,119180.0,0.52485422]
[1752690036756,0.02192994,119190.0,119180.0,0.57094439]
[1752690036967,0.19811907,119190.0,119180.0,0.56271422]
[1752690037392,0.02192994,119190.0,119180.0,0.57110439]
[1752690037615,0.01354033,119190.0,119180.0,2.51758939]
[1752690038127,0.02192994,119190.0,119180.0,2.51758939]
[1752690038348,0.01354026,119190.0,119180.0,2.51758939]
[1752690038564,0.01354033,119190.0,119180.0,2.51758939]
[1752690038793,0.03031976,119190.0,119180.0,2.51758939]
[1752690039010,0.00515086,119190.0,119180.0,2.51758939]
[1752690039246,0.01354033,119190.0,119180.0,2.42535339]
[1752690039463,0.02193001,119190.0,119180.0,2.35541539]
[1752690039688,0.03031983,119190.0,119180.0,0.71697939]
[1752690039908,0.03031983,119190.0,119180.0,0.70428739]
[1752690040112,0.02193001,119190.0,119180.0,0.70428739]
[1752690040327,0.03031983,119190.0,119180.0,0.70428739]
[1752690040798,0.03031976,119190.0,119180.0,0.70428739]
[1752690041003,0.01354033,119190.0,119180.0,0.70428739]
[1752690041210,0.02192994,119190.0,119180.0,0.70428739]
[1752690041429,0.03031969,119190.0,119180.0,0.70428739]
[1752690041998,0.20650889,119190.0,119180.0,0.66379722]
[1752690042212,0.58250132,119190.0,119180.0,0.55416391]
[1752690042421,0.58250132,119190.0,119180.0,0.54835191]
[1752690042422,0.19811942,119190.0,119180.0,0.54835191]
[1752690042616,0.57411171,119190.0,119180.0,0.41646391]
[1752690043075,0.57411171,119190.0,119180.0,0.41646405]
[1752690043309,0.57411171,119190.0,119180.0,0.42257464]
[1752690043530,0.57411171,119190.0,119180.0,0.54405309]
[1752690044058,0.57411171,119190.0,119180.0,0.54405316]
[1752690044305,0.4063124,119190.0,119180.0,0.43935561]
[1752690044516,0.4063124,119190.0,119180.0,0.46494585]
[1752690044743,0.41470236,119190.0,119180.0,0.91222892]
[1752690044964,0.57411192,119190.0,119180.0,0.55256439]
[1752690045186,0.57411192,119190.0,119180.0,0.52755505]
[1752690045467,0.57411192,119190.0,119180.0,0.351351]
[1752690045880,0.57411192,119190.0,119180.0,0.23798]
[1752690046090,0.57936192,119190.0,119180.0,0.490811]
[1752690046308,0.57734192,119190.0,119180.0,0.66727498]
[1752690046722,0.56895203,119190.0,119180.0,0.66727505]
[1752690046951,0.56895203,119190.0,119180.0,0.68405616]
[1752690047157,0.56572203,119190.0,119180.0,0.69244661]
[1752690047625,0.3979223,119190.0,119180.0,0.71843692]
[1752690047881,0.42309162,119190.0,119180.0,0.73473643]
[1752690048378,0.03870916,119190.0,119180.0,0.73473643]
[1752690048612,0.2065091,119190.0,119180.0,0.72634626]
[1752690048835,0.19811956,119190.0,119180.0,0.71795595]
[1752690049059,0.18134013,119190.0,119180.0,0.71795595]
[1752690050391,0.18134013,119190.0,119180.0,0.57823595]
[1752690050676,0.17820017,119190.0,119180.0,0.54539339]
[1752690050869,0.56056207,119190.0,119180.0,0.55378405]
[1752690051101,0.55733207,119190.0,119180.0,0.56217464]
[1752690051564,0.39792258,119190.0,119180.0,0.59585533]
[1752690051799,0.58250146,119190.0,119180.0,0.61245533]
[1752690052843,0.19811984,119190.0,119180.0,1.17562709]
[1752690053060,0.19811984,119190.0,119180.0,0.87041264]
[1752690053253,0.18973002,119190.0,119180.0,0.87041264]
[1752690053500,0.18973002,119190.0,119180.0,0.80249964]
[1752690053684,0.18973002,119190.0,119180.0,0.81089016]
[1752690053887,0.18973002,119190.0,119180.0,0.58156054]
[1752690055024,0.57411192,119190.0,119180.0,0.58156054]
[1752690055725,0.57411192,119190.0,119180.0,0.59806061]
[1752690055935,0.56572203,119190.0,119180.0,0.31606405]
[1752690056157,0.56056207,119190.0,119180.0,0.31606405]
[1752690056380,0.17620391,119180.0,119170.0,0.3726]
[1752690056598,0.17620391,119180.0,119170.0,0.34]
[1752690056599,0.59913581,119180.0,119170.0,0.34]
[1752690056818,0.16784155,119160.0,119150.0,0.21840666]
[1752690057063,0.55220937,119170.0,119160.0,0.5]
[1752690057280,0.55220937,119170.0,119150.0,0.45178972]
[1752690057281,0.16784155,119160.0,119150.0,0.45178972]
[1752690057517,0.00839186,119160.0,119150.0,1.13331986]
[1752690057735,0.00839186,119160.0,119150.0,1.09472786]
[1752690057954,0.01678379,119160.0,119150.0,1.09472786]
[1752690058142,0.01778365,119160.0,119150.0,1.10072786]
[1752690058394,0.01778365,119160.0,119150.0,1.20612986]
[1752690058605,0.01778365,119160.0,119150.0,1.09876886]
[1752690059035,0.01778351,119160.0,119150.0,1.09876886]
[1752690059246,0.01778351,119160.0,119150.0,0.80644186]
[1752690059467,0.02617544,119160.0,119150.0,1.50356486]
[1752690059969,0.01778316,119160.0,119150.0,1.44451886]
[1752690060392,0.001,119160.0,119150.0,2.93398786]
[1752690061291,0.001,119160.0,119150.0,0.80660186]
[1752690061511,0.001,119160.0,119150.0,4.53486986]
[1752690061725,0.001,119160.0,119150.0,4.49793486]
[1752690062382,0.001,119160.0,119150.0,5.00972086]
[1752690062594,0.001,119160.0,119150.0,5.39410276]
[1752690063020,0.001,119160.0,119150.0,5.00972086]
[1752690063898,2.36e-05,119160.0,119150.0,5.00972086]
[1752690065009,2.36e-05,119160.0,119150.0,4.87024086]
[1752690065236,2.36e-05,119160.0,119150.0,3.59283786]
[1752690065446,2.36e-05,119160.0,119150.0,3.73211786]
[1752690065915,2.36e-05,119160.0,119150.0,4.75636986]
[1752690066160,2.36e-05,119160.0,119150.0,4.72128286]
[1752690066383,2.36e-05,119160.0,119150.0,4.65147386]
[1752690066946,2.36e-05,119160.0,119150.0,3.70713286]
[1752690067426,2.36e-05,119160.0,119150.0,3.68868586]
[1752690067865,2.36e-05,119160.0,119150.0,3.77350586]
[1752690068723,2.36e-05,119160.0,119150.0,3.40324986]
[1752690068927,2.36e-05,119160.0,119150.0,2.82526186]
[1752690069139,0.00841504,119160.0,119150.0,1.433097]
[1752690069361,0.00841504,119160.0,119150.0,1.450897]
[1752690070005,2.36e-05,119160.0,119150.0,2.112942]
[1752690070235,2.36e-05,119160.0,119150.0,2.129642]
[1752690071067,2.36e-05,119160.0,119150.0,4.553459]
[1752690071307,2.36e-05,119160.0,119150.0,5.010141]
[1752690073303,2.36e-05,119160.0,119150.0,0.807022]
[1752690073518,2.36e-05,119160.0,119150.0,5.010141]
[1752690074801,0.19972335,119180.0,119170.0,0.53300095]
[1752690075040,0.19972335,119180.0,119170.0,3.91102695]
[1752690075236,0.03190966,119180.0,119170.0,3.84922783]
[1752690075438,0.04030018,119180.0,119170.0,3.84922783]
[1752690076169,0.20657491,119180.0,119170.0,1.96699909]
[1752690076425,0.59095681,119180.0,119170.0,1.96699909]
[1752690076627,0.59095681,119180.0,119170.0,0.47904]
[1752690076628,0.60647626,119180.0,119170.0,0.47904]
[1752690076833,0.60647626,119180.0,119170.0,0.65525877]
[1752690077267,0.60747626,119180.0,119170.0,0.48204]
[1752690077471,0.60747626,119180.0,119170.0,0.6582587]
[1752690077762,0.43966287,119180.0,119170.0,0.66664972]
[1752690077893,0.40216287,119180.0,119170.0,0.6753006]
[1752690078099,0.41055346,119180.0,119170.0,0.6753006]
[1752690078307,0.40530259,119180.0,119170.0,0.6753006]
[1752690078514,0.5815065,119180.0,119170.0,0.66690972]
[1752690078825,0.57311626,119180.0,119170.0,0.66690986]
[1752690079031,0.59069529,119180.0,119170.0,0.343]
[1752690079238,0.59069529,119180.0,119170.0,0.482]
[1752690079552,0.59069529,119180.0,119170.0,0.65821884]
[1752690080701,0.59069529,119180.0,119170.0,0.49039137]
[1752690081435,0.59069529,119180.0,119170.0,0.65821884]
[1752690082461,0.59069529,119180.0,119170.0,0.49039137]
[1752690082890,0.59069529,119180.0,119170.0,0.482]
[1752690083318,0.59069529,119180.0,119170.0,0.65821877]
[1752690084039,0.59069529,119180.0,119170.0,0.65821884]
[1752690084463,0.59069529,119180.0,119170.0,0.66661014]
[1752690084667,0.20631339,119180.0,119170.0,0.66661014]
[1752690084882,0.59069529,119180.0,119170.0,0.66661014]
[1752690086484,0.20631339,119180.0,119170.0,0.66661014]
[1752690086689,0.59069529,119180.0,119170.0,0.66661014]
[1752690088387,0.59069529,119180.0,119170.0,0.65821884]
[1752690088601,0.59069529,119180.0,119170.0,0.67500137]
[1752690089041,0.0385,119180.0,119170.0,0.69178334]
[1752690089252,0.0385,119180.0,119170.0,1.51375746]
[1752690089253,0.41894293,119180.0,119170.0,1.51375746]
[1752690089468,0.59514754,119180.0,119170.0,1.52214841]
[1752690089672,0.41894349,119180.0,119170.0,1.52214841]
[1752690089890,0.03456159,119180.0,119170.0,1.52214841]
[1752690090113,0.03456159,119180.0,119170.0,1.54741759]
[1752690090340,0.03456159,119180.0,119170.0,1.5474171]
[1752690090563,0.20551498,119180.0,119170.0,1.5474171]
[1752690090782,0.21390564,119180.0,119170.0,1.5474171]
[1752690091460,0.02931093,119180.0,119170.0,1.5474171]
[1752690091674,0.001,119180.0,119170.0,5.03824138]
[1752690092818,0.001,119180.0,119170.0,5.03840138]
[1752690093030,0.001,119180.0,119170.0,5.4322972]
[1752690093244,6.509e-05,119180.0,119170.0,5.4322972]
[1752690093864,6.509e-05,119180.0,119170.0,5.5822972]
[1752690094511,0.00315086,119190.0,119180.0,0.56428453]
[1752690094729,0.00315086,119190.0,119180.0,5.38586963]
[1752690095158,0.00315086,119190.0,119180.0,4.99197381]
[1752690096030,0.00315086,119190.0,119180.0,4.99397381]
[1752690097263,0.00315086,119190.0,119180.0,5.3786433]
[1752690098887,0.00315086,119190.0,119180.0,5.3766433]
[1752690099120,0.00120877,119190.0,119180.0,5.3816433]
[1752690099618,0.003,119210.0,119200.0,0.53295216]
[1752690099860,0.003,119210.0,119200.0,4.99226144]
[1752690100111,0.003,119210.0,119200.0,4.99242144]
[1752690101501,0.003,119210.0,119200.0,4.99226144]
[1752690101715,0.003,119210.0,119200.0,4.99326144]
[1752690102886,0.45503906,119230.0,119220.0,0.53292]
[1752690103101,0.4576033,119230.0,119220.0,0.75691028]
[1752690103330,0.4576033,119230.0,119220.0,0.76529764]
[1752690103535,0.62534631,119230.0,119220.0,0.76529764]
[1752690103757,0.61695973,119230.0,119220.0,0.4784]
[1752690103981,0.61695973,119230.0,119220.0,0.65454479]
[1752690104200,0.61695973,119230.0,119220.0,0.65454493]
[1752690104892,0.61695973,119230.0,119220.0,0.66293271]
[1752690105121,0.61895973,119230.0,119220.0,0.66293271]
[1752690105562,0.45121672,119230.0,119220.0,0.67970764]
[1752690105780,0.05815966,119230.0,119220.0,0.67970764]
[1752690106028,0.24267647,119230.0,119220.0,0.67132028]
[1752690106240,0.25106355,119230.0,119220.0,0.67970771]
[1752690106456,0.08132054,119230.0,119220.0,0.68809507]
[1752690106670,0.07293346,119230.0,119220.0,0.68809507]
[1752690107552,0.03938643,119230.0,119220.0,0.68809507]
[1752690107783,0.01637308,119230.0,119220.0,0.68835507]
[1752690108210,0.01637308,119230.0,119220.0,2.78102507]
[1752690108673,0.01637301,119230.0,119220.0,2.78102507]
[1752690108888,0.00278643,119230.0,119220.0,2.86653535]
[1752690109113,0.00278643,119230.0,119220.0,2.86468093]
[1752690109333,0.01117301,119230.0,119220.0,2.88078093]
[1752690109554,0.01117294,119230.0,119220.0,4.97512993]
[1752690109773,0.00278643,119230.0,119220.0,4.97512993]
[1752690110637,0.01117301,119230.0,119220.0,4.97512993]
[1752690110860,0.01955973,119230.0,119220.0,4.97512993]
[1752690111318,0.01727973,119230.0,119220.0,4.97512993]
[1752690111731,0.02891659,119230.0,119220.0,4.59219693]
[1752690111945,0.03094659,119230.0,119220.0,3.78741193]
[1752690112707,0.03094659,119230.0,119220.0,4.12394893]
[1752690112914,0.03094659,119230.0,119220.0,4.08344893]
[1752690113132,0.0393336,119230.0,119220.0,1.87223493]
[1752690113350,0.63383325,119230.0,119220.0,1.33977164]
[1752690113785,0.63383325,119230.0,119220.0,1.34815907]
[1752690113995,0.06464659,119230.0,119220.0,1.34815858]
[1752690114916,0.0730336,119230.0,119220.0,1.34815858]
[1752690115159,0.45849685,119230.0,119220.0,1.34815858]
[1752690115792,0.46688378,119230.0,119220.0,1.34815858]
[1752690116437,0.47527079,119230.0,119220.0,0.77151058]
[1752690116644,0.47527079,119230.0,119220.0,2.01157858]
[1752690116857,0.47527079,119230.0,119220.0,1.87341858]
[1752690117060,0.47527129,119230.0,119220.0,1.46204758]
[1752690117187,0.64301473,119230.0,119220.0,1.35972265]
[1752690117602,0.47527172,119230.0,119220.0,1.36811008]
[1752690118195,0.46688457,119230.0,119220.0,1.36811008]
[1752690118401,0.04787308,119230.0,119220.0,1.37649744]
[1752690118603,0.44172334,119230.0,119220.0,1.37675744]
[1752690119047,0.03948643,119230.0,119220.0,1.37675744]
[1752690119202,0.44172327,119230.0,119220.0,1.37675744]
[1752690119418,0.00050643,119230.0,119220.0,1.46226772]
[1752690119625,0.00050643,119230.0,119220.0,5.00670972]
[1752690119829,0.00050643,119230.0,119220.0,5.40055998]
[1752690120314,0.00050643,119230.0,119220.0,5.00670972]
[1752690121317,3.35e-05,119230.0,119220.0,5.00670972]
[1752690121738,3.35e-05,119230.0,119220.0,5.00970972]
[1752690122813,0.002,119250.0,119240.0,0.56628743]
[1752690123014,0.00215121,119250.0,119240.0,4.99313671]
[1752690126407,0.00215121,119250.0,119240.0,5.38698697]
[1752690126555,0.46423604,119270.0,119260.0,0.19285508]
[1752690126854,0.0472637,119270.0,119260.0,2.09220408]
[1752690127056,0.4662659,119270.0,119260.0,2.08355954]
[1752690127317,0.4662659,119270.0,119260.0,2.09194415]
[1752690127532,0.4662659,119270.0,119260.0,2.10032869]
[1752690127711,0.47465016,119270.0,119260.0,2.10032869]
[1752690127907,0.63395322,119270.0,119260.0,2.10063468]
[1752690128107,0.63395322,119270.0,119260.0,2.11740426]
[1752690128327,0.64233755,119270.0,119260.0,0.67895571]
[1752690128534,0.63595378,119270.0,119260.0,0.72556561]
[1752690128747,0.63595378,119270.0,119260.0,0.73395044]
[1752690129417,0.63595378,119270.0,119260.0,0.74233519]
[1752690129644,0.04926391,119270.0,119260.0,0.75910434]
[1752690129861,0.46826604,119270.0,119260.0,0.75910434]
[1752690130080,0.4766503,119270.0,119260.0,0.7507198]
[1752690130306,0.46826604,119270.0,119260.0,0.75910434]
[1752690130511,0.45988185,119270.0,119260.0,0.75910434]
[1752690130722,0.47665037,119270.0,119260.0,0.7507198]
[1752690130934,0.25048687,119270.0,119260.0,0.57934071]
[1752690131149,0.62756952,119270.0,119260.0,0.73387065]
[1752690131406,0.62756952,119270.0,119260.0,0.7422554]
[1752690131835,0.45149843,119270.0,119260.0,0.7422554]
[1752690132035,0.45149801,119270.0,119260.0,0.75902455]
[1752690132235,0.45988213,119270.0,119260.0,0.75902455]
[1752690133217,0.04926377,119270.0,119260.0,0.75902455]
[1752690133440,0.05764768,119270.0,119260.0,0.75902455]
[1752690133645,0.45149794,119270.0,119260.0,0.75902455]
[1752690133840,0.43473026,119270.0,119260.0,0.75902455]
[1752690134085,0.00928,119270.0,119260.0,0.84479483]
[1752690134280,0.43619801,119270.0,119260.0,0.84479483]
[1752690134564,0.45269801,119270.0,119260.0,0.84479483]
[1752690134785,0.45269801,119270.0,119260.0,0.84453483]
[1752690135007,0.46108213,119270.0,119260.0,0.84453483]
[1752690136117,0.45269801,119270.0,119260.0,0.84453483]
[1752690136338,0.46946625,119270.0,119260.0,0.84453483]
[1752690136575,0.46108206,119270.0,119260.0,0.84453483]
[1752690136811,0.0672318,119270.0,119260.0,0.84453483]
[1752690137021,0.46108206,119270.0,119260.0,0.84453483]
[1752690137267,0.46946625,119270.0,119260.0,0.84453483]
[1752690137696,0.46108206,119270.0,119260.0,0.84453483]
[1752690137949,0.46946625,119270.0,119260.0,0.84453483]
[1752690138167,0.46946625,119270.0,119260.0,0.45835483]
[1752690138392,0.46946625,119270.0,119260.0,2.46172583]
[1752690138614,0.47785051,119270.0,119260.0,2.46152583]
[1752690138846,0.47785051,119270.0,119260.0,2.38688083]
[1752690139065,0.62876952,119270.0,119260.0,0.77534993]
[1752690139298,0.63715385,119270.0,119260.0,0.78373461]
[1752690139517,0.63715385,119270.0,119260.0,0.63778993]
[1752690139757,0.6287698,119270.0,119260.0,0.77534993]
[1752690139978,0.6287698,119270.0,119260.0,0.78373468]
[1752690140664,0.62038547,119270.0,119260.0,0.78373468]
[1752690141120,0.62038547,119270.0,119260.0,0.79211922]
[1752690141344,0.4610822,119270.0,119260.0,0.79211922]
[1752690141565,0.05884775,119270.0,119260.0,0.79211922]
[1752690141797,0.46946632,119270.0,119260.0,0.79211922]
[1752690142753,0.47785058,119270.0,119260.0,0.79211922]
[1752690143008,0.63715308,119270.0,119260.0,0.78373468]
[1752690143225,0.46946632,119270.0,119260.0,0.78373468]
[1752690143446,0.63715308,119270.0,119260.0,0.62940503]
[1752690143666,0.62876959,119270.0,119260.0,0.78369483]
[1752690144089,0.46108283,119270.0,119260.0,0.79207944]
[1752690144519,0.45269857,119270.0,119260.0,0.65455944]
[1752690144706,0.45269857,119270.0,119260.0,0.80042412]
[1752690144952,0.62038533,119270.0,119260.0,0.63779]
[1752690145136,0.62876959,119270.0,119260.0,0.62940503]
[1752690145345,0.62876959,119270.0,119260.0,0.77523]
[1752690145557,0.62038547,119270.0,119260.0,0.75845999]
[1752690145766,0.60361702,119270.0,119260.0,0.47282289]
[1752690145973,0.60361702,119270.0,119260.0,0.64052371]
[1752690146188,0.60361702,119270.0,119260.0,0.51150875]
[1752690146398,0.60361702,119270.0,119260.0,0.33542289]
[1752690146608,0.61815787,119270.0,119260.0,0.02545989]
[1752690147048,0.22568722,119240.0,119230.0,0.3940515]
[1752690147262,0.60473551,119240.0,119230.0,0.77159449]
[1752690147472,1.00153577,119240.0,119230.0,0.00015121]
[1752690147716,1.00153577,119240.0,119230.0,0.13755121]
[1752690147920,1.13889577,119240.0,119230.0,0.34015121]
[1752690148195,1.13889577,119240.0,119230.0,0.13751121]
[1752690148633,1.13889577,119240.0,119230.0,0.34015121]
[1752690148854,1.13889577,119240.0,119230.0,0.00015121]
[1752690149066,1.13889577,119240.0,119230.0,0.50015121]
[1752690149277,1.13889577,119240.0,119230.0,0.84015121]
[1752690149498,1.13889577,119240.0,119230.0,0.34015121]
[1752690149706,1.13889577,119240.0,119230.0,0.36581735]
[1752690150335,1.13989577,119240.0,119230.0,0.36581735]
[1752690152255,1.15443662,119240.0,119230.0,0.02581735]
[1752690152465,1.15443662,119240.0,119230.0,0.00015121]
[1752690153310,1.2399469,119240.0,119230.0,0.00015121]
[1752690154199,0.18451695,119230.0,119220.0,0.002]
[1752690154454,0.69774749,119230.0,119220.0,0.002]
[1752690154666,0.70069749,119230.0,119220.0,0.002]
[1752690156559,0.70269749,119230.0,119220.0,0.002]
[1752690157000,0.70569749,119230.0,119220.0,0.002]
[1752690157206,0.84289749,119230.0,119220.0,0.002]
[1752690158907,0.36353695,119230.0,119220.0,0.002]
[1752690159108,0.77192806,119230.0,119220.0,0.002]
[1752690163150,0.3780778,119230.0,119220.0,0.002]
[1752690163385,0.77192806,119230.0,119220.0,0.002]
[1752690164106,1.07102806,119230.0,119220.0,0.002]
[1752690167998,1.05482806,119230.0,119220.0,0.002]
[1752690168416,1.03912806,119230.0,119220.0,0.002]
[1752690169046,0.19443695,119230.0,119220.0,0.342]
[1752690169261,0.72036721,119230.0,119220.0,0.35836]
[1752690169468,0.18951695,119230.0,119220.0,0.54289243]
[1752690169786,0.005,119230.0,119220.0,3.53499748]
[1752690169986,0.005,119230.0,119220.0,3.53515748]
[1752690170409,0.4107733,119240.0,119230.0,0.1929036]
[1752690170624,0.4191596,119240.0,119230.0,1.7972456]
[1752690171138,0.4191596,119240.0,119230.0,1.9342056]
[1752690171139,0.03369557,119240.0,119230.0,1.9342056]
[1752690171344,0.42754583,119240.0,119230.0,1.9342056]
[1752690171560,0.60366115,119240.0,119230.0,1.9342056]
[1752690171787,0.60566171,119240.0,119230.0,1.9342056]
[1752690172008,0.60566171,119240.0,119230.0,2.01971588]
[1752690172009,0.01892304,119240.0,119230.0,2.01971588]
[1752690172224,0.42954597,119240.0,119230.0,3.36148788]
[1752690172449,0.03569571,119240.0,119230.0,3.36148788]
[1752690172889,0.4211596,119240.0,119230.0,3.36148788]
[1752690173115,0.02730934,119240.0,119230.0,3.55939488]
[1752690173365,0.4211596,119240.0,119230.0,3.20965788]
[1752690173595,0.4211596,119240.0,119230.0,3.16600388]
[1752690173816,0.03569571,119240.0,119230.0,2.95356588]
[1752690174033,0.42115953,119240.0,119230.0,2.95356588]
[1752690174258,0.42115946,119240.0,119230.0,3.11706588]
[1752690174478,0.4127733,119240.0,119230.0,2.95291088]
[1752690174691,0.4211596,119240.0,119230.0,2.90753688]
[1752690175138,0.4211596,119240.0,119230.0,2.93536388]
[1752690175352,0.02730934,119240.0,119230.0,2.93536388]
[1752690175603,0.00215107,119240.0,119230.0,2.93536388]
[1752690175817,0.42115925,119240.0,119230.0,2.93536388]
[1752690176038,0.42115918,119240.0,119230.0,2.93536388]
[1752690176289,0.02730892,119240.0,119230.0,3.27374588]
[1752690176495,0.42115918,119240.0,119230.0,3.27374588]
[1752690176703,0.40438714,119240.0,119230.0,3.27374588]
[1752690176926,0.00215107,119240.0,119230.0,3.27390588]
[1752690177147,0.00215107,119240.0,119230.0,3.71233888]
[1752690177820,0.39600133,119240.0,119230.0,3.71233888]
[1752690178269,0.39600133,119240.0,119230.0,3.97408788]
[1752690178974,0.00215107,119240.0,119230.0,3.97408788]
[1752690179196,0.00853688,119240.0,119230.0,2.68163588]
[1752690179426,0.39400133,119240.0,119230.0,2.68263588]
[1752690180290,0.39400133,119240.0,119230.0,4.65221288]
[1752690182033,0.40238714,119240.0,119230.0,4.65205288]
[1752690182469,0.39400133,119240.0,119230.0,4.65205288]
[1752690182704,0.40238714,119240.0,119230.0,4.65205288]
[1752690182892,0.39400133,119240.0,119230.0,4.65205288]
[1752690183347,0.00015107,119240.0,119230.0,4.65205288]
[1752690183562,0.39400133,119240.0,119230.0,4.65205288]
[1752690184010,0.41077316,119240.0,119230.0,0.44893388]
[1752690184227,0.02530906,119240.0,119230.0,3.89011588]
[1752690184455,0.02530906,119240.0,119230.0,0.57769123]
[1752690184456,0.42442932,119240.0,119230.0,0.57769123]
[1752690184663,0.03057906,119240.0,119230.0,0.6483896]
[1752690184877,0.41604316,119240.0,119230.0,0.6483896]
[1752690185083,0.40765714,119240.0,119230.0,0.6483896]
[1752690185323,0.39400133,119240.0,119230.0,0.6637896]
[1752690185532,0.39400133,119240.0,119230.0,0.6804496]
[1752690186157,0.39400133,119240.0,119230.0,0.6802896]
[1752690186369,0.41077309,119240.0,119230.0,0.6802896]
[1752690186617,0.40238721,119240.0,119230.0,0.6802896]
[1752690186825,0.39400133,119240.0,119230.0,0.6802896]
[1752690187255,0.40238714,119240.0,119230.0,0.6802896]
[1752690187678,0.41077302,119240.0,119230.0,0.6802896]
[1752690187893,0.40238714,119240.0,119230.0,0.6802896]
[1752690188097,0.39400133,119240.0,119230.0,0.6802896]
[1752690188312,0.40238714,119240.0,119230.0,0.6637896]
[1752690188525,0.40238714,119240.0,119230.0,0.64646331]
[1752690188734,0.41915911,119240.0,119230.0,0.64783725]
[1752690188938,0.41392309,119240.0,119230.0,0.64783725]
[1752690189206,0.42230911,119240.0,119230.0,0.6394506]
[1752690189396,0.40689961,119240.0,119230.0,0.64783725]
[1752690189600,0.41528556,119240.0,119230.0,0.64783725]
[1752690190909,0.58301451,119240.0,119230.0,0.61428994]
[1752690191173,1.00069952,119240.0,119230.0,0.30534301]
[1752690191404,0.82458427,119240.0,119230.0,0.3305036]
[1752690191618,0.84135638,119240.0,119230.0,0.3305036]
[1752690191836,0.45437846,119240.0,119230.0,0.3305036]
[1752690192053,0.44599223,119240.0,119230.0,0.3305036]
[1752690192271,0.83984249,119240.0,119230.0,0.3305036]
[1752690192489,0.06891464,119240.0,119230.0,0.33889046]
[1752690192712,0.4627649,119240.0,119230.0,0.33889046]
[1752690193153,0.46276476,119240.0,119230.0,0.34727711]
[1752690193426,0.63888064,119240.0,119230.0,0.33889046]
[1752690193684,0.62210832,119240.0,119230.0,0.32211695]
[1752690193940,0.99918591,119240.0,119230.0,0.001]
[1752690194392,1.01372676,119240.0,119230.0,0.001]
[1752690196881,0.20683002,119230.0,119220.0,0.002]
[1752690197126,0.74249028,119230.0,119220.0,0.002]
[1752690198100,0.74249028,119230.0,119220.0,0.003]
[1752690201179,0.75703113,119230.0,119220.0,0.003]
[1752690201666,0.3569871,119230.0,119220.0,0.51914493]
[1752690201894,0.72013736,119230.0,119220.0,0.54430806]
[1752690202216,0.58365736,119230.0,119220.0,0.55269563]
[1752690202495,0.39701026,119240.0,119230.0,0.50774301]
[1752690202771,0.39701026,119240.0,119230.0,1.5938216]
[1752690202772,0.42216853,119240.0,119230.0,1.5938216]
[1752690203019,0.41378139,119250.0,119240.0,0.53288743]
[1752690203296,0.4106209,119250.0,119240.0,0.66958743]
[1752690203512,0.02515624,119250.0,119240.0,0.66958743]
[1752690203760,0.59825046,119260.0,119250.0,0.5328714]
[1752690204021,0.43054885,119260.0,119250.0,0.54151665]
[1752690204260,0.43054892,119260.0,119250.0,2.09713765]
[1752690204507,0.42216402,119260.0,119250.0,2.09713765]
[1752690204760,0.43054892,119260.0,119250.0,2.09713765]
[1752690205003,0.03969859,119260.0,119250.0,2.09713765]
[1752690205240,0.42516402,119260.0,119250.0,2.09713765]
[1752690205689,0.41677927,119260.0,119250.0,2.09713765]
[1752690205920,0.40523466,119260.0,119250.0,2.21344793]
[1752690206147,0.39685026,119260.0,119250.0,2.21344793]
[1752690206361,0.40523473,119260.0,119250.0,2.18264793]
[1752690206611,0.39885026,119260.0,119250.0,2.18264793]
[1752690206830,0.40723473,119260.0,119250.0,2.18264793]
[1752690207278,0.44106473,119260.0,119250.0,2.15723183]
[1752690207494,0.17610041,119250.0,119240.0,0.51611495]
[1752690207709,0.58362634,119250.0,119240.0,1.18013495]
[1752690207921,0.59201208,119250.0,119240.0,0.99626144]
[1752690208139,0.58362655,119250.0,119240.0,0.987875]
[1752690208372,0.58362655,119250.0,119240.0,1.16399039]
[1752690208801,0.18977629,119250.0,119240.0,0.99622144]
[1752690209012,0.57524088,119250.0,119230.0,0.53290353]
[1752690209228,0.56157921,119240.0,119230.0,0.62680039]
[1752690209442,0.39385026,119240.0,119230.0,4.19536039]
[1752690210142,0.41900846,119240.0,119230.0,4.19536039]
[1752690210359,0.42739462,119240.0,119230.0,4.19536039]
[1752690210597,0.57833641,119250.0,119240.0,0.18450162]
[1752690210800,0.58362641,119250.0,119240.0,0.99812039]
[1752690211034,0.57524088,119250.0,119240.0,0.822005]
[1752690211246,0.56685514,119250.0,119240.0,0.822005]
[1752690211454,0.56685514,119250.0,119240.0,0.90146395]
[1752690211673,0.56685514,119250.0,119240.0,0.513735]
[1752690211888,0.17611525,119240.0,119230.0,0.61002694]
[1752690212097,0.56996551,119240.0,119230.0,3.92133194]
[1752690212321,0.41900888,119240.0,119230.0,3.92971859]